[Event "Jerry Simon Memorial 2024"]
[Site "New York"]
[Date "2024.11.25"]
[Round "5.1"]
[White "Colwell, Andrew"]
[Black "Shvarts, Tim"]
[Result "1/2-1/2"]
[ECO "D35"]
[WhiteElo "1792"]
[BlackElo "1915"]
[Annotator "RC"]
[PlyCount "72"]
[EventDate "2024.11.22"]
[EventType "swiss"]
[EventCountry "USA"]
[SourceTitle "playchess.com"]
[Source "ChessBase"]
[SourceQuality "1"]
[TimeControl "5400+30"]

1. d4 {[%emt 0:00:01]} Nf6 {[%emt 0:00:11]} 2. c4 {[%emt 0:00:03]} e6 {[%emt 0:00:05]} 3. Nc3 {[%emt 0:00:05]} d5 {[%emt 0:00:06]} 4. cxd5 {[%emt 0:00:13]} exd5 {[%emt 0:00:05]} 5. Bg5 {[%emt 0:00:04]} Be7 {[%emt 0:00:12]} 6. e3 {[%emt 0:00:24]} Nbd7 {[%emt 0:00:13]} 7. Bd3 {[%emt 0:00:06]} h6 {[%emt 0:00:14]} 8. Bh4 {[%emt 0:00:09]} O-O {[%emt 0:00:10]} 9. Nge2 {[%emt 0:01:03]} c6 {[%emt 0:00:11]} 10. O-O {[%emt 1:33:22]} Ne4 {[%emt 0:00:29]} 11. Bxe7 {[%emt 0:00:00]} Qxe7 {[%emt 0:00:17]} 12. Bxe4 {[%emt 0:00:00]} dxe4 {[%emt 0:00:02]} 13. Ng3 {[%emt 0:00:00]} Nf6 {[%emt 0:00:12]} 14. f3 {[%emt 0:00:00]} exf3 {[%emt 0:04:37]} 15. Qxf3 {[%emt 0:00:00]} Re8 {[%emt 0:13:06]} 16. e4 {[%emt 0:00:00]} Qb4 {[%emt 0:01:14]} 17. Qf2 {[%emt 0:00:00]} Be6 {[%emt 0:01:04]} 18. Rad1 {[%emt 0:00:00]} Rad8 {[%emt 0:01:02]} 19. h3 {[%emt 0:00:00]} Rd7 {[%emt 0:03:48]} 20. e5 {[%emt 0:00:00]} Nd5 {[%emt 0:02:14]} 21. Nce4 {[%emt 0:00:00]} b6 {[%emt 0:15:00]} 22. Nh5 {[%emt 0:00:00]} Kh8 {[%emt 0:06:52]} 23. Rd3 {[%emt 0:00:00]} Rg8 {[%emt 0:13:12]} 24. Nd6 {[%emt 0:00:00]} Rxd6 {[%emt 0:15:45]} 25. exd6 {[%emt 0:00:00]} Qxd6 {[%emt 0:00:02]} 26. b3 {[%emt 0:00:00]} a5 {[%emt 0:02:10]} 27. Rg3 {[%emt 0:00:00]} g6 {[%emt 0:00:44]} 28. Nf6 {[%emt 0:00:00]} Nxf6 {[%emt 0:00:10]} 29. Qxf6+ {[%emt 0:00:00]} Kh7 {[%emt 0:00:04]} 30. Rgf3 {[%emt 0:00:00]} b5 {[%emt 0:01:23]} 31. Rf4 {[%emt 0:00:00]} Rd8 {[%emt 0:03:25]} 32. Rh4 {[%emt 0:00:00]} h5 {[%emt 0:03:39]} 33. Rff4 {[%emt 0:00:00]} Re8 {[%emt 0:05:27]} 34. g4 {[%emt 0:00:00]} Qd8 {[%emt 0:00:19]} 35. g5 {[%emt 0:03:35]} Qc7 {[%emt 0:02:39]} 36. Kf2 {[%emt 0:02:40]} a4 {[%emt 0:00:16]} 1/2-1/2

[Event "Jerry Simon Memorial 2024"]
[Site "New York"]
[Date "2024.11.25"]
[Round "5.2"]
[White "Liao, Connor"]
[Black "Otero, Joseph"]
[Result "1/2-1/2"]
[ECO "A48"]
[WhiteElo "1741"]
[BlackElo "1862"]
[Annotator "NA RC"]
[PlyCount "52"]
[EventDate "2024.11.22"]
[EventType "swiss"]
[EventCountry "USA"]
[SourceTitle "playchess.com"]
[Source "ChessBase"]
[SourceQuality "1"]
[TimeControl "5400+30"]

1. d4 {[%emt 0:00:01]} Nf6 {[%emt 0:00:05]} 2. Nf3 {[%emt 0:00:06]} g6 {[%emt 0:01:16]} 3. e3 {[%emt 0:00:13]} Bg7 {[%emt 0:00:07]} 4. b3 {[%emt 0:00:07]} b6 {[%emt 0:00:25]} 5. Bb2 {[%emt 0:00:10]} Bb7 {[%emt 0:00:10]} 6. Nbd2 {[%emt 0:00:42]} O-O {[%emt 0:00:10]} 7. Be2 {[%emt 0:00:25]} d6 {[%emt 0:00:09]} 8. O-O {[%emt 0:00:23]} Nbd7 {[%emt 0:00:17]} 9. c4 {[%emt 0:00:26]} Re8 {[%emt 0:00:52] A48: 1 d4 Nf6 2 Nf3 g6: Torre, London and Colle Systems.} 10. Qc2 {[%emt 0:00:45]} c5 {[%emt 0:01:19]} 11. Rad1 {[%emt 0:03:13]} Qc7 {[%emt 0:01:08]} 12. Nb1 {[%emt 0:02:58]} Ne4 {[%emt 0:00:39]} 13. Nc3 {[%emt 0:00:36]} Nxc3 {[%emt 0:00:22]} 14. Bxc3 {[%emt 0:00:38]} Rac8 {[%emt 0:00:31]} 15. Qb2 {[%emt 0:02:36]} a6 {[%emt 0:01:12]} (15... cxd4 $11 16. Nxd4 d5) 16. Rc1 {[%emt 0:02:11]} e5 {[%emt 0:01:02]} 17. dxe5 {[%emt 0:00:36]} dxe5 {[%emt 0:00:26]} 18. Nd2 {[%emt 0:03:53]} Nf8 {[%emt 0:01:05]} 19. Bf3 {[%emt 0:01:45]} Ne6 {[%emt 0:02:44]} 20. Bxb7 {[%emt 0:04:08]} Qxb7 {[%emt 0:00:17]} 21. Rfe1 {[%emt 0:13:50]} Rcd8 {[%emt 0:14:19]} 22. Rcd1 {[%emt 0:02:39]} Nd4 {[%emt 0:04:42]} 23. Nf1 {[%emt 0:01:58]} Nc6 {[%emt 0:01:17]} 24. a3 {[%emt 0:01:30]} h5 $11 {[%emt 0:00:53]} 25. h3 {[%emt 0:09:00]} f5 {[%emt 0:05:41]} 26. Ng3 {[%emt 0:02:10]} Qe7 {[%emt 0:07:24]} 1/2-1/2

[Event "Jerry Simon Memorial 2024"]
[Site "New York"]
[Date "2024.11.25"]
[Round "5.3"]
[White "Tao, Jeremy"]
[Black "Knowles, Chase"]
[Result "1/2-1/2"]
[ECO "B06"]
[WhiteElo "1837"]
[BlackElo "1983"]
[Annotator "RC"]
[PlyCount "107"]
[EventDate "2024.11.22"]
[EventType "swiss"]
[EventCountry "USA"]
[SourceTitle "playchess.com"]
[Source "ChessBase"]
[SourceQuality "1"]
[TimeControl "5400+30"]

1. d4 {[%emt 0:00:02]} g6 {[%emt 0:00:07]} 2. c4 {[%emt 0:00:07]} Bg7 {[%emt 0:00:06]} 3. e4 {[%emt 0:00:53]} d6 {[%emt 0:00:08]} 4. Nc3 {[%emt 0:00:16]} Nd7 {[%emt 0:00:54]} 5. Nge2 {[%emt 0:00:21]} e5 {[%emt 0:00:49]} 6. d5 {[%emt 0:00:43]} Ne7 {[%emt 0:00:44]} 7. g3 {[%emt 0:01:59]} f5 {[%emt 0:00:36]} 8. Bg2 {[%emt 0:00:49]} O-O {[%emt 0:00:21]} 9. O-O {[%emt 0:00:33]} Nf6 {[%emt 0:02:12]} 10. exf5 {[%emt 0:03:09]} gxf5 {[%emt 0:00:58]} 11. f4 {[%emt 0:00:11]} e4 {[%emt 0:00:58]} 12. Be3 {[%emt 0:02:08]} c6 {[%emt 0:02:23]} 13. Qb3 {[%emt 0:02:49]} c5 {[%emt 0:01:37]} 14. h3 {[%emt 0:01:45]} a6 {[%emt 0:00:41]} 15. Qa3 {[%emt 0:02:42]} b5 {[%emt 0:08:04]} 16. cxb5 {[%emt 0:05:14]} Nexd5 {[%emt 0:03:42]} 17. Nxd5 {[%emt 0:06:05]} Nxd5 {[%emt 0:00:13]} 18. Bf2 {[%emt 0:00:58]} Be6 {[%emt 0:05:20]} 19. g4 {[%emt 0:05:07]} fxg4 {[%emt 0:14:25]} 20. Bxe4 {[%emt 0:01:53]} Nxf4 {[%emt 0:10:38]} 21. Nxf4 {[%emt 0:01:28]} Rxf4 {[%emt 0:01:05]} 22. Bxa8 {[%emt 0:01:36]} Qxa8 {[%emt 0:00:11]} 23. Qxa6 {[%emt 0:01:39]} Qe4 {[%emt 0:02:51]} 24. Rae1 {[%emt 0:02:26]} Qg6 {[%emt 0:01:00]} 25. h4 {[%emt 0:03:06]} Bc4 {[%emt 0:03:33]} 26. Rd1 {[%emt 0:11:52]} Bxf1 {[%emt 0:05:25]} 27. Qa8+ {[%emt 0:05:56]} Rf8 {[%emt 0:08:23]} 28. Qd5+ {[%emt 0:00:23]} Kh8 {[%emt 0:01:00]} 29. Rxf1 {[%emt 0:00:20]} g3 {[%emt 0:05:19]} 30. Be3 {[%emt 0:05:23]} Re8 {[%emt 0:01:51]} 31. Bg5 {[%emt 0:22:05]} h6 {[%emt 0:04:08]} 32. Bd2 {[%emt 0:03:53]} Bd4+ {[%emt 0:01:11]} 33. Kh1 {[%emt 0:01:49]} g2+ {[%emt 0:02:03]} 34. Qxg2 {[%emt 0:00:10]} Qxg2+ {[%emt 0:00:04]} 35. Kxg2 {[%emt 0:00:06]} Re2+ {[%emt 0:00:06]} 36. Kf3 {[%emt 0:00:05]} Rxd2 {[%emt 0:00:05]} 37. Rb1 {[%emt 0:00:10]} d5 {[%emt 0:04:46]} 38. a4 {[%emt 0:00:36]} c4 {[%emt 0:02:05]} 39. a5 {[%emt 0:00:33]} Rf2+ {[%emt 0:00:19]} 40. Kg4 {[%emt 0:00:58]} Bc5 {[%emt 0:02:17]} 41. b4 {[%emt 0:00:34]} Bd4 {[%emt 0:04:38]} 42. b6 {[%emt 0:01:03]} Rf7 {[%emt 0:00:24]} 43. b5 {[%emt 0:01:36]} Kg8 {[%emt 0:00:32]} 44. Rd1 {[%emt 0:00:58]} c3 {[%emt 0:00:17]} 45. Re1 {[%emt 0:02:42]} Bc5 {[%emt 0:01:20]} 46. Re8+ {[%emt 0:01:23]} Rf8 {[%emt 0:03:03]} 47. Rxf8+ {[%emt 0:00:45]} Bxf8 {[%emt 0:00:31]} 48. b7 {[%emt 0:00:24]} c2 {[%emt 0:00:19]} 49. b8=Q {[%emt 0:00:29]} c1=Q {[%emt 0:01:18]} 50. Qe5 {[%emt 0:00:33]} Qc4+ {[%emt 0:00:00]} 51. Kh5 {[%emt 0:00:51]} Qxb5 {[%emt 0:00:00]} 52. Qe6+ {[%emt 0:00:36]} Kh8 {[%emt 0:00:09]} 53. Qf5 {[%emt 0:01:35]} Qxa5 {[%emt 0:01:07]} 54. Qxf8+ {[%emt 0:00:11]} 1/2-1/2

[Event "Jerry Simon Memorial 2024"]
[Site "New York"]
[Date "2024.11.25"]
[Round "5.4"]
[White "Shirvell, Matthew M"]
[Black "Nkululeko, Nkosi"]
[Result "0-1"]
[ECO "A29"]
[WhiteElo "1704"]
[BlackElo "1906"]
[Annotator "RC"]
[PlyCount "112"]
[EventDate "2024.11.22"]
[EventType "swiss"]
[EventCountry "USA"]
[SourceTitle "playchess.com"]
[Source "ChessBase"]
[SourceQuality "1"]
[TimeControl "5400+30"]

1. c4 {[%emt 0:00:08]} e5 {[%emt 0:00:03]} 2. Nc3 {[%emt 0:00:20]} Nf6 {[%emt 0:00:04]} 3. g3 {[%emt 0:00:09]} d5 {[%emt 0:00:15]} 4. cxd5 {[%emt 0:00:07]} Nxd5 {[%emt 0:00:02]} 5. Bg2 {[%emt 0:00:30]} Nb6 {[%emt 0:00:06]} 6. Nf3 {[%emt 0:00:23]} Nc6 {[%emt 0:00:05]} 7. O-O {[%emt 0:00:36]} Be7 {[%emt 0:00:12]} 8. a3 {[%emt 0:00:19]} Be6 {[%emt 0:02:02]} 9. b4 {[%emt 0:00:29]} a5 {[%emt 0:00:40]} 10. b5 {[%emt 0:00:25]} Nd4 {[%emt 0:00:31]} 11. Nxd4 {[%emt 0:01:01]} exd4 {[%emt 0:00:02]} 12. Na4 {[%emt 0:01:25]} Bd5 {[%emt 0:02:07]} 13. Nxb6 {[%emt 0:00:43]} cxb6 {[%emt 0:00:02]} 14. Bxd5 {[%emt 0:00:42]} Qxd5 {[%emt 0:00:02]} 15. a4 {[%emt 0:00:19]} O-O {[%emt 0:01:26]} 16. Ba3 {[%emt 0:00:23]} Bc5 {[%emt 0:00:09]} 17. d3 {[%emt 0:00:31]} Rfe8 {[%emt 0:00:15]} 18. Qd2 {[%emt 0:00:36]} Re6 {[%emt 0:00:25]} 19. Bxc5 {[%emt 0:00:45]} bxc5 {[%emt 0:00:04]} 20. Qa2 {[%emt 0:02:11]} Qh5 {[%emt 0:00:31]} 21. f3 {[%emt 0:02:23]} Rae8 {[%emt 0:00:35]} 22. Rf2 {[%emt 0:00:33]} b6 {[%emt 0:00:09]} 23. Rc1 {[%emt 0:02:19]} Re3 {[%emt 0:01:22]} 24. Qc2 {[%emt 0:01:57]} Qe5 {[%emt 0:00:35]} 25. Re1 {[%emt 0:00:48]} h5 {[%emt 0:00:19]} 26. Kg2 {[%emt 0:02:53]} Qd5 {[%emt 0:00:50]} 27. Rc1 {[%emt 0:02:43]} R8e6 {[%emt 0:01:07]} 28. Kf1 {[%emt 0:00:56]} Qf5 {[%emt 0:00:19]} 29. Re1 {[%emt 0:01:33]} Qh3+ {[%emt 0:00:25]} 30. Kg1 {[%emt 0:00:30]} Rg6 {[%emt 0:00:45]} 31. Rg2 {[%emt 0:00:37]} Qe6 {[%emt 0:00:20]} 32. Rc1 {[%emt 0:00:54]} Kh7 {[%emt 0:04:40]} 33. Rf2 {[%emt 0:01:03]} f5 {[%emt 0:00:53]} 34. Kh1 {[%emt 0:02:03]} f4 {[%emt 0:00:37]} 35. gxf4 {[%emt 0:01:13]} Qf5 {[%emt 0:03:33]} 36. Rg1 {[%emt 0:00:31]} Rxg1+ {[%emt 0:00:43]} 37. Kxg1 {[%emt 0:00:02]} Qxf4 {[%emt 0:00:19]} 38. Qd2 {[%emt 0:01:44]} g5 {[%emt 0:01:48]} 39. Qc2 {[%emt 0:01:06]} Qf7 {[%emt 0:00:55]} 40. Rg2 {[%emt 0:01:30]} Kh6 {[%emt 0:01:01]} 41. Qb1 {[%emt 0:04:04]} Re5 {[%emt 0:01:21]} 42. Qc1 {[%emt 0:01:14]} Qf4 {[%emt 0:00:20]} 43. Qxf4 {[%emt 0:05:13]} gxf4 {[%emt 0:00:03]} 44. Kf2 {[%emt 0:06:12]} Rg5 {[%emt 0:00:36]} 45. Rxg5 {[%emt 0:01:30]} Kxg5 {[%emt 0:00:03]} 46. h3 {[%emt 0:00:23]} Kf5 {[%emt 0:00:10]} 47. Ke1 {[%emt 0:01:07]} Ke5 {[%emt 0:00:07]} 48. Kd2 {[%emt 0:01:27]} Kd5 {[%emt 0:00:02]} 49. Kc2 {[%emt 0:01:28]} c4 {[%emt 0:00:10]} 50. dxc4+ {[%emt 0:00:37]} Kxc4 {[%emt 0:00:07]} 51. Kd2 {[%emt 0:00:11]} Kb4 {[%emt 0:00:43]} 52. Kd3 {[%emt 0:00:29]} Kxa4 {[%emt 0:00:03]} 53. Kc4 {[%emt 0:00:39]} h4 {[%emt 0:00:11]} 54. Kxd4 {[%emt 0:00:11]} Kxb5 {[%emt 0:00:27]} 55. e3 {[%emt 0:00:42]} fxe3 {[%emt 0:00:06]} 56. Kxe3 {[%emt 0:00:06]} a4 {[%emt 0:00:11]} 0-1

[Event "Jerry Simon Memorial 2024"]
[Site "New York"]
[Date "2024.11.25"]
[Round "5.5"]
[White "Dalhouse, Justin"]
[Black "Wallace, Harper"]
[Result "1-0"]
[ECO "B12"]
[WhiteElo "1903"]
[BlackElo "1795"]
[Annotator "RC"]
[PlyCount "73"]
[EventDate "2024.11.22"]
[EventType "swiss"]
[EventCountry "USA"]
[SourceTitle "playchess.com"]
[Source "ChessBase"]
[SourceQuality "1"]
[TimeControl "5400+30"]

1. e4 {[%emt 0:00:01]} c6 {[%emt 0:00:48]} 2. d4 {[%emt 0:00:02]} d5 {[%emt 0:00:06]} 3. e5 {[%emt 0:00:01]} c5 {[%emt 0:00:04]} 4. c3 {[%emt 0:00:01]} Nc6 {[%emt 0:00:04]} 5. Be2 {[%emt 0:00:01]} a6 {[%emt 0:00:05]} 6. a3 {[%emt 0:00:11]} Bf5 {[%emt 0:00:12]} 7. Nf3 {[%emt 0:00:01]} e6 {[%emt 0:00:25]} 8. O-O {[%emt 0:00:03]} Nge7 {[%emt 0:00:05]} 9. dxc5 {[%emt 0:00:13]} Ng6 {[%emt 0:00:37]} 10. b4 {[%emt 0:00:01]} Bg4 {[%emt 0:00:31]} 11. Nd4 {[%emt 0:01:15]} Bxe2 {[%emt 0:00:38]} 12. Qxe2 {[%emt 0:00:02]} Ngxe5 {[%emt 0:01:50]} 13. Nxc6 {[%emt 0:14:45]} Nxc6 {[%emt 0:00:30]} 14. Qg4 {[%emt 0:00:05]} Ne5 {[%emt 0:01:51]} 15. Qg3 {[%emt 0:02:31]} Ng6 {[%emt 0:01:56]} 16. Nd2 {[%emt 0:05:25]} Be7 {[%emt 0:00:29]} 17. Nf3 {[%emt 0:00:09]} Bf6 {[%emt 0:00:16]} 18. Nd4 {[%emt 0:00:53]} O-O {[%emt 0:00:56]} 19. Bd2 {[%emt 0:02:09]} Rc8 {[%emt 0:01:16]} 20. Rad1 {[%emt 0:02:24]} Ne5 {[%emt 0:13:01]} 21. Rfe1 {[%emt 0:03:38]} Nc4 {[%emt 0:01:11]} 22. Bc1 {[%emt 0:00:01]} b6 {[%emt 0:00:36]} 23. Nb3 {[%emt 0:00:42]} a5 {[%emt 0:00:27]} 24. a4 {[%emt 0:01:03]} Qd7 {[%emt 0:06:09]} 25. cxb6 {[%emt 0:01:47]} axb4 {[%emt 0:00:28]} 26. cxb4 {[%emt 0:00:40]} Qxa4 {[%emt 0:00:39]} 27. b7 {[%emt 0:01:59]} Rcd8 {[%emt 0:08:12]} 28. Nc5 {[%emt 0:00:22]} Qxb4 {[%emt 0:00:59]} 29. Qc7 {[%emt 0:00:43]} Be5 {[%emt 0:06:17]} 30. Rxe5 {[%emt 0:22:02]} Nxe5 {[%emt 0:00:20]} 31. Bg5 {[%emt 0:00:02]} Qg4 {[%emt 0:03:09]} 32. Rf1 {[%emt 0:08:15]} Nf3+ {[%emt 0:02:30]} 33. Kh1 {[%emt 0:00:02]} Qc4 {[%emt 0:02:06]} 34. Rc1 {[%emt 0:00:33]} Qe2 {[%emt 0:10:24]} 35. Bxd8 {[%emt 0:00:53]} Ne1 {[%emt 0:00:52]} 36. Kg1 {[%emt 0:00:02]} Qd2 {[%emt 0:02:50]} 37. Nb3 {[%emt 0:36:03]} 1-0

[Event "Jerry Simon Memorial 2024"]
[Site "New York"]
[Date "2024.11.25"]
[Round "5.6"]
[White "Olsen, Robert"]
[Black "Li, Robert"]
[Result "1-0"]
[ECO "A62"]
[WhiteElo "1877"]
[BlackElo "1738"]
[Annotator "NA RC"]
[PlyCount "79"]
[EventDate "2024.11.22"]
[EventType "swiss"]
[EventCountry "USA"]
[SourceTitle "playchess.com"]
[Source "ChessBase"]
[SourceQuality "1"]
[TimeControl "5400+30"]

1. d4 {[%emt 0:00:02]} Nf6 {[%emt 0:00:06]} 2. c4 {[%emt 0:00:04]} g6 {[%emt 0:00:03]} 3. g3 {[%emt 0:00:04]} Bg7 {[%emt 0:00:04]} 4. Bg2 {[%emt 0:00:05]} O-O {[%emt 0:00:07]} 5. Nc3 {[%emt 0:00:04]} d6 {[%emt 0:00:04]} 6. Nf3 {[%emt 0:00:03]} c5 {[%emt 0:00:05]} 7. d5 {[%emt 0:02:36]} e6 {[%emt 0:00:06]} 8. O-O {[%emt 0:00:40]} exd5 {[%emt 0:01:11]} 9. cxd5 {[%emt 0:00:07]} Re8 {[%emt 0:00:57]} 10. Bf4 {[%emt 0:00:16] Recently 10.Re1 got a lot of attention.} a6 {[%emt 0:06:04]} 11. a4 {[%emt 1:31:59]} Nh5 {[%emt 0:04:52]} 12. Bg5 {[%emt 0:00:00] A62: Modern Benoni: Fianchetto Variation without early ...Nbd7.} Qb6 {[%emt 0:02:36]} 13. Qc2 {[%emt 0:00:00]} Nd7 {[%emt 0:01:29]} 14. Rfe1 {[%emt 0:00:00]} h6 {[%emt 0:04:05]} 15. a5 $146 {[%emt 0:00:00]} ({Predecessor:} 15. Bd2 c4 16. a5 Qc7 17. Qa4 Nhf6 18. e4 Rb8 19. Be3 Re7 20. Ba7 Ra8 21. Bd4 {0-1 Ortiz,F (1871)-Axarlian,C (2017) ARG-ch 96th Buenos Aires 2022 (10)}) 15... Qc7 {[%emt 0:01:03]} 16. Bd2 {[%emt 0:00:00]} b5 {[%emt 0:03:46]} 17. axb6 {[%emt 0:00:00]} Nxb6 {[%emt 0:02:38]} 18. e4 {[%emt 0:00:00]} Bd7 {[%emt 0:01:15]} 19. Nd1 {[%emt 0:00:00]} Nf6 {[%emt 0:08:06]} 20. Nc3 {[%emt 0:00:00]} Nc4 {[%emt 0:02:34]} 21. Bc1 {[%emt 0:00:00]} Nb6 {[%emt 0:09:44]} 22. h3 {[%emt 0:00:00]} g5 {[%emt 0:01:45]} 23. Qd1 {[%emt 0:00:00]} Qc8 {[%emt 0:05:32]} 24. h4 {[%emt 0:00:00]} gxh4 {[%emt 0:04:31]} 25. Nxh4 {[%emt 0:00:00]} Rb8 {[%emt 0:02:52]} 26. Bf1 {[%emt 0:00:00]} c4 {[%emt 0:02:51]} 27. Bf4 {[%emt 0:00:00]} Qc5 {[%emt 0:01:33]} 28. Be3 {[%emt 0:00:00]} Qc8 {[%emt 0:03:17]} 29. Bd4 $18 {[%emt 0:00:00]} Bg4 {[%emt 0:02:54]} 30. Qd2 {[%emt 0:00:00]} h5 {[%emt 0:05:35]} 31. f3 {[%emt 0:00:00]} Bh3 {[%emt 0:03:29]} 32. Qg5 {[%emt 0:00:00]} Re5 {[%emt 0:03:42]} 33. Bxe5 {[%emt 0:00:00]} dxe5 {[%emt 0:00:06]} 34. Bxh3 {[%emt 0:00:00]} Qxh3 {[%emt 0:00:04]} 35. Nf5 {[%emt 0:00:00]} Ne8 {[%emt 0:00:28]} 36. Re2 {[%emt 0:00:00]} f6 {[%emt 0:02:19]} 37. Qg6 {[%emt 0:00:00]} Nd7 {[%emt 0:01:36]} 38. Rh2 {[%emt 0:00:00]} Nf8 {[%emt 0:00:10]} 39. Qxg7+ {[%emt 0:00:00]} Nxg7 {[%emt 0:00:12]} 40. Rxh3 {[%emt 0:00:00]} 1-0

[Event "Jerry Simon Memorial 2024"]
[Site "New York"]
[Date "2024.11.25"]
[Round "5.7"]
[White "Wang, Connor Junda"]
[Black "Raitzin, Misha"]
[Result "0-1"]
[ECO "C45"]
[WhiteElo "1931"]
[BlackElo "1821"]
[Annotator "RC"]
[PlyCount "30"]
[EventDate "2024.11.22"]
[EventType "swiss"]
[EventCountry "USA"]
[SourceTitle "playchess.com"]
[Source "ChessBase"]
[SourceQuality "1"]
[TimeControl "5400+30"]

1. e4 {[%emt 0:00:01]} e5 {[%emt 0:00:07]} 2. Nf3 {[%emt 0:00:03]} Nc6 {[%emt 0:00:06]} 3. d4 {[%emt 0:00:03]} exd4 {[%emt 0:00:06]} 4. Nxd4 {[%emt 0:00:04]} Nf6 {[%emt 0:00:07]} 5. Nxc6 {[%emt 0:00:05]} bxc6 {[%emt 0:00:03]} 6. e5 {[%emt 0:00:05]} Qe7 {[%emt 0:00:05]} 7. Qe2 {[%emt 0:00:04]} Nd5 {[%emt 0:00:07]} 8. h4 {[%emt 0:00:04]} a5 {[%emt 0:01:25]} 9. Bg5 {[%emt 0:13:41]} Qc5 {[%emt 0:02:24]} 10. c4 {[%emt 0:05:23]} Ba6 {[%emt 0:00:15]} 11. Nd2 {[%emt 0:05:59]} h6 {[%emt 0:04:34]} 12. Ne4 {[%emt 0:12:52]} Qb4+ {[%emt 0:04:07]} 13. Qd2 {[%emt 0:02:39]} hxg5 {[%emt 0:03:47]} 14. cxd5 {[%emt 0:00:18]} Qxe4+ {[%emt 0:00:09]} 15. Be2 {[%emt 0:00:41]} Bb4 {[%emt 0:00:06]} 0-1

[Event "Jerry Simon Memorial 2024"]
[Site "New York"]
[Date "2024.11.25"]
[Round "5.8"]
[White "Paruchuri, Naveen"]
[Black "Sen, Samant Robert"]
[Result "1-0"]
[ECO "A90"]
[WhiteElo "1825"]
[BlackElo "1741"]
[Annotator "NA RC"]
[PlyCount "101"]
[EventDate "2024.11.22"]
[EventType "swiss"]
[EventCountry "USA"]
[SourceTitle "playchess.com"]
[Source "ChessBase"]
[SourceQuality "1"]
[TimeControl "5400+30"]

1. d4 {[%emt 0:00:30]} f5 {[%emt 0:00:06]} 2. c4 {[%emt 0:00:00]} e6 {[%emt 0:00:07]} 3. Nf3 {[%emt 0:00:10]} Nf6 {[%emt 0:00:07]} 4. g3 {[%emt 0:00:22]} c6 {[%emt 1:32:10]} 5. Bg2 {[%emt 0:00:26]} d5 {[%emt 0:00:00]} 6. O-O {[%emt 0:01:44]} Bd6 {[%emt 0:00:00]} 7. b3 {[%emt 0:00:16]} O-O {[%emt 0:00:00]} 8. Bb2 {[%emt 0:03:15]} Nbd7 {[%emt 0:00:00]} 9. Nbd2 {[%emt 0:01:10]} Qe8 {[%emt 0:00:00]} 10. Ne5 {[%emt 0:04:08]} Qh5 {[%emt 0:00:00] A90: Dutch Defence: Miscellaneous and Modern Stonewall (with ...Bd6).} 11. Ndf3 {[%emt 0:08:49]} g5 {[%emt 0:00:00]} 12. e3 {[%emt 0:04:45]} Ng4 {[%emt 0:00:00]} 13. h3 {[%emt 0:09:54]} Ngxe5 {[%emt 0:00:00]} 14. Nxe5 {[%emt 0:02:10]} Qxd1 {[%emt 0:00:00]} 15. Raxd1 {[%emt 0:00:44]} Nxe5 {[%emt 0:00:00]} 16. dxe5 {[%emt 0:00:04]} Bc7 {[%emt 0:00:00]} 17. g4 {[%emt 0:06:18]} f4 {[%emt 0:00:00]} 18. exf4 {[%emt 0:02:19]} Rxf4 {[%emt 0:00:00]} 19. cxd5 {[%emt 0:05:00]} cxd5 {[%emt 0:00:00]} 20. Rc1 {[%emt 0:07:47]} Bb6 {[%emt 0:00:00]} 21. Rc2 {[%emt 0:00:21]} h6 {[%emt 0:00:00]} 22. Bc1 {[%emt 0:02:17]} Rf7 {[%emt 0:00:00]} 23. Kh2 {[%emt 0:01:53]} Bd7 {[%emt 0:00:00]} 24. f4 {[%emt 0:00:50]} Bb5 {[%emt 0:00:00]} 25. Rf3 {[%emt 0:00:59]} Raf8 {[%emt 0:00:00]} 26. f5 {[%emt 0:00:18]} Bc7 {[%emt 0:00:00]} 27. Bb2 {[%emt 0:01:27]} Bc6 {[%emt 0:00:00]} 28. Bd4 {[%emt 0:01:53]} exf5 {[%emt 0:00:00]} 29. Rxf5 {[%emt 0:00:36]} Rxf5 {[%emt 0:00:00]} 30. gxf5 {[%emt 0:00:01]} Rxf5 {[%emt 0:00:00]} 31. Bxd5+ {[%emt 0:00:53]} Kf8 {[%emt 0:00:00]} 32. Bxc6 {[%emt 0:00:40]} bxc6 {[%emt 0:00:00]} 33. Kg2 {[%emt 0:02:42]} Kf7 {[%emt 0:07:04]} 34. Rxc6 {[%emt 0:00:37]} Bxe5 {[%emt 0:00:22]} 35. Bxa7 {[%emt 0:01:38]} Bf6 {[%emt 0:00:32]} 36. Be3 {[%emt 0:04:35]} Rd5 {[%emt 0:01:37]} 37. Rc2 {[%emt 0:01:29]} Be7 {[%emt 0:01:29]} 38. Rd2 {[%emt 0:04:14]} Re5 {[%emt 0:01:10]} 39. Bf2 {[%emt 0:01:02]} Rb5 {[%emt 0:01:35]} 40. Rd3 {[%emt 0:00:51]} Ba3 {[%emt 0:00:44]} 41. Be3 {[%emt 0:01:00]} Ke6 {[%emt 0:01:32] [#]} 42. h4 {[%emt 0:00:54]} Kf5 {[%emt 0:01:44]} 43. Rd1 {[%emt 0:04:22]} Ke4 {[%emt 0:00:32]} 44. Bc1 {[%emt 0:01:16]} Bb4 {[%emt 0:00:51]} 45. hxg5 {[%emt 0:02:32]} hxg5 $14 {[%emt 0:00:05]} 46. Kg3 {[%emt 0:02:29]} Rf5 {[%emt 0:00:57]} 47. Kg4 {[%emt 0:01:49]} Rf2 {[%emt 0:00:37]} 48. a3 {[%emt 0:00:32]} Bc3 {[%emt 0:00:02]} 49. Kxg5 {[%emt 0:00:57]} Rg2+ {[%emt 0:00:05]} 50. Kh6 {[%emt 0:00:03]} Rh2+ {[%emt 0:00:45]} 51. Kg6 {[%emt 0:00:18]} 1-0

[Event "Jerry Simon Memorial 2024"]
[Site "New York"]
[Date "2024.11.25"]
[Round "5.9"]
[White "Bonnell, Gregor"]
[Black "Chen, Ryan"]
[Result "0-1"]
[ECO "B22"]
[WhiteElo "1659"]
[BlackElo "1839"]
[Annotator "NA RC"]
[PlyCount "34"]
[EventDate "2024.11.22"]
[EventType "swiss"]
[EventCountry "USA"]
[SourceTitle "playchess.com"]
[Source "ChessBase"]
[SourceQuality "1"]
[TimeControl "5400+30"]

1. e4 {[%emt 0:00:03]} c5 {[%emt 0:00:03]} 2. Nf3 {[%emt 0:00:07]} e6 {[%emt 0:00:03]} 3. c3 {[%emt 0:00:08]} Nf6 {[%emt 0:00:15]} 4. e5 {[%emt 0:00:21]} Nd5 {[%emt 0:00:18]} 5. g3 {[%emt 0:00:20]} d6 {[%emt 0:00:28]} 6. exd6 {[%emt 0:00:28]} Bxd6 {[%emt 0:00:08]} 7. Bg2 {[%emt 0:00:07]} Nc6 {[%emt 0:00:53]} 8. d4 {[%emt 0:01:55]} cxd4 {[%emt 0:00:04]} 9. Nxd4 {[%emt 0:00:18]} O-O {[%emt 0:06:18]} 10. O-O {[%emt 0:03:32]} Bc5 {[%emt 0:03:57]} 11. Nxc6 {[%emt 0:07:18]} bxc6 {[%emt 0:00:07]} 12. c4 {[%emt 0:06:00]} Nb4 {[%emt 0:02:17]} 13. Nc3 {[%emt 0:08:20]} Ba6 {[%emt 0:07:49]} 14. Qe2 {[%emt 0:09:56]} Qd3 {[%emt 0:12:12]} 15. Qxd3 {[%emt 0:06:28]} Nxd3 $15 {[%emt 0:00:04]} 16. Bxc6 {[%emt 0:05:54]} Rad8 {[%emt 0:01:53]} 17. Bb5 {[%emt 0:07:23]} Bb7 {[%emt 0:00:34]} 0-1